[Event "Late-Titled-Tuesday-Blitz-April-30-2024"]
[Site "Chess.com"]
[Date "2024.04.30"]
[Round "6"]
[White "masterofpuppets2"]
[Black "gtnamfrq"]
[Result "0-1"]
[WhiteElo "2460"]
[BlackElo "2322"]
[TimeControl "180+1"]
[EndTime "15:06:02 PDT"]
[Termination "gtnamfrq won by checkmate"]

1. d4 {[%clk 0:03:00.9]} 1... Nf6 {[%clk 0:02:53.2]} 2. c4 {[%clk 0:03:00.3]}
2... e6 {[%clk 0:02:53.5]} 3. Nc3 {[%clk 0:03:00.2]} 3... Bb4 {[%clk 0:02:53.6]}
4. Qc2 {[%clk 0:03:00.5]} 4... c5 {[%clk 0:02:52.3]} 5. dxc5 {[%clk 0:03:00.4]}
5... Na6 {[%clk 0:02:51.6]} 6. a3 {[%clk 0:03:00.6]} 6... Bxc3+ {[%clk
0:02:48.8]} 7. Qxc3 {[%clk 0:03:01.5]} 7... Nxc5 {[%clk 0:02:48.6]} 8. b4 {[%clk
0:03:02.1]} 8... Nce4 {[%clk 0:02:48.6]} 9. Qb2 {[%clk 0:03:02.6]} 9... b6
{[%clk 0:02:32.8]} 10. Nf3 {[%clk 0:02:57.6]} 10... O-O {[%clk 0:02:29.7]} 11.
h3 {[%clk 0:02:54.1]} 11... Ba6 {[%clk 0:02:29.1]} 12. e3 {[%clk 0:02:52.3]}
12... Rc8 {[%clk 0:02:27.1]} 13. b5 {[%clk 0:02:47]} 13... Bb7 {[%clk
0:02:24.5]} 14. Be2 {[%clk 0:02:47.4]} 14... Qe7 {[%clk 0:02:10.9]} 15. O-O
{[%clk 0:02:46]} 15... d6 {[%clk 0:02:11.1]} 16. a4 {[%clk 0:02:43]} 16... Rc7
{[%clk 0:01:56.7]} 17. a5 {[%clk 0:02:41]} 17... Rfc8 {[%clk 0:01:51.8]} 18.
axb6 {[%clk 0:02:15]} 18... axb6 {[%clk 0:01:51.6]} 19. Nd4 {[%clk 0:02:12.3]}
19... e5 {[%clk 0:01:36.8]} 20. Nf3 {[%clk 0:02:01.6]} 20... d5 {[%clk
0:01:25.7]} 21. Nxe5 {[%clk 0:01:52.9]} 21... dxc4 {[%clk 0:01:20.5]} 22. Nxc4
{[%clk 0:01:39.8]} 22... Rxc4 {[%clk 0:01:17.7]} 23. Bxc4 {[%clk 0:01:40.7]}
23... Rxc4 {[%clk 0:01:17.6]} 24. Ra7 {[%clk 0:01:37.4]} 24... Nc5 {[%clk
0:01:06.3]} 25. Qa2 {[%clk 0:01:31.2]} 25... Rh4 {[%clk 0:00:42.8]} 26. f3
{[%clk 0:01:14.5]} 26... h6 {[%clk 0:00:35.3]} 27. e4 {[%clk 0:01:14.1]} 27...
Nfxe4 {[%clk 0:00:24.3]} 28. fxe4 {[%clk 0:01:13.9]} 28... Rxe4 {[%clk
0:00:25.2]} 29. Ba3 {[%clk 0:00:37.9]} 29... Re2 {[%clk 0:00:23.7]} 30. Qxe2
{[%clk 0:00:27.3]} 30... Qxe2 {[%clk 0:00:20.9]} 31. Bxc5 {[%clk 0:00:27.4]}
31... Qxg2# {[%clk 0:00:20.7]} 0-1

[Event "Late-Titled-Tuesday-Blitz-April-30-2024"]
[Site "Chess.com"]
[Date "2024.04.30"]
[Round "6"]
[White "protectiago"]
[Black "ferdipy"]
[Result "1-0"]
[WhiteElo "2062"]
[BlackElo "2268"]
[TimeControl "180+1"]
[EndTime "15:06:07 PDT"]
[Termination "protectiago won by resignation"]

1. d4 {[%clk 0:02:58.8]} 1... e5 {[%clk 0:00:16.4]} 2. dxe5 {[%clk 0:02:57.3]}
2... d6 {[%clk 0:00:17.3]} 3. Nf3 {[%clk 0:02:57.7]} 3... Nc6 {[%clk 0:00:16.9]}
4. exd6 {[%clk 0:02:57.5]} 4... Bxd6 {[%clk 0:00:16.8]} 5. g3 {[%clk 0:02:58]}
5... Bg4 {[%clk 0:00:17.4]} 6. Bg2 {[%clk 0:02:58.1]} 6... Qf6 {[%clk
0:00:18.1]} 7. O-O {[%clk 0:02:57.8]} 7... h6 {[%clk 0:00:18.8]} 8. Nc3 {[%clk
0:02:57.2]} 8... O-O-O {[%clk 0:00:19.4]} 9. Ne4 {[%clk 0:02:55.6]} 9... Qe7
{[%clk 0:00:18.7]} 10. Nxd6+ {[%clk 0:02:55.2]} 10... Rxd6 {[%clk 0:00:19.1]}
11. Qe1 {[%clk 0:02:55.2]} 11... Nf6 {[%clk 0:00:19]} 12. Bf4 {[%clk 0:02:55.2]}
12... Rdd8 {[%clk 0:00:18.7]} 13. Qc3 {[%clk 0:02:43.4]} 13... g5 {[%clk
0:00:18.8]} 14. Be5 {[%clk 0:02:29.3]} 14... Nd5 {[%clk 0:00:18.5]} 15. Qc4
{[%clk 0:02:19.4]} 15... Nxe5 {[%clk 0:00:16.8]} 16. Nxe5 {[%clk 0:02:18.3]}
16... Qxe5 {[%clk 0:00:16.7]} 17. Qxg4+ {[%clk 0:02:16.3]} 17... f5 {[%clk
0:00:17.3]} 18. Qa4 {[%clk 0:02:09.4]} 18... Kb8 {[%clk 0:00:17]} 19. c4 {[%clk
0:02:08.6]} 19... Nb6 {[%clk 0:00:17.5]} 20. Qb3 {[%clk 0:02:05.2]} 20... Qxe2
{[%clk 0:00:17.8]} 21. c5 {[%clk 0:02:04.7]} 21... Nd5 {[%clk 0:00:08.1]} 22.
Bxd5 {[%clk 0:02:02.9]} 22... Qa6 {[%clk 0:00:06.2]} 23. c6 {[%clk 0:01:53.2]}
23... b6 {[%clk 0:00:05.1]} 24. Bc4 {[%clk 0:01:52.3]} 24... Qa5 {[%clk
0:00:04.9]} 25. Qb5 {[%clk 0:01:50.7]} 25... Qxb5 {[%clk 0:00:01.8]} 26. Bxb5
{[%clk 0:01:51.6]} 26... Rd2 {[%clk 0:00:02.1]} 27. Rad1 {[%clk 0:01:46.3]}
27... Rhd8 {[%clk 0:00:03]} 28. Rxd2 {[%clk 0:01:45]} 28... Rxd2 {[%clk
0:00:03.9]} 29. Re1 {[%clk 0:01:45.1]} 29... a5 {[%clk 0:00:03.6]} 30. Ba6
{[%clk 0:01:39]} 30... Ka7 {[%clk 0:00:03.7]} 31. Bb7 {[%clk 0:01:38.5]} 31...
b5 {[%clk 0:00:04.4]} 32. Re8 {[%clk 0:01:35.2]} 32... Rxb2 {[%clk 0:00:03.2]}
33. Ra8+ {[%clk 0:01:34.2]} 33... Kb6 {[%clk 0:00:03.8]} 34. Ra6+ {[%clk
0:01:34.2]} 34... Kc5 {[%clk 0:00:04.5]} 35. Rxa5 {[%clk 0:01:33.8]} 35... f4
{[%clk 0:00:05.4]} 36. gxf4 {[%clk 0:01:32.6]} 36... gxf4 {[%clk 0:00:06.3]} 37.
Kg2 {[%clk 0:01:32.6]} 37... Rb4 {[%clk 0:00:05.8]} 38. Kf3 {[%clk 0:01:30.1]}
38... h5 {[%clk 0:00:05.7]} 39. h4 {[%clk 0:01:29.3]} 39... Rc4 {[%clk
0:00:05.6]} 40. Ba6 {[%clk 0:01:26.1]} 40... Kb6 {[%clk 0:00:06]} 41. Ra3 {[%clk
0:01:19.3]} 41... b4 {[%clk 0:00:06]} 42. Bxc4 {[%clk 0:01:18.5]} 42... bxa3
{[%clk 0:00:05.9]} 43. Bd5 {[%clk 0:01:17.3]} 43... Kc5 {[%clk 0:00:06.2]} 44.
Be4 {[%clk 0:01:17.1]} 44... Kd4 {[%clk 0:00:06.7]} 45. Kxf4 {[%clk 0:01:17]}
45... Kc3 {[%clk 0:00:07.6]} 46. Bd5 {[%clk 0:01:16.8]} 46... Kb2 {[%clk
0:00:08.5]} 47. Kg5 {[%clk 0:01:16.3]} 1-0

[Event "Late-Titled-Tuesday-Blitz-April-30-2024"]
[Site "Chess.com"]
[Date "2024.04.30"]
[Round "6"]
[White "lamomiajunior"]
[Black "Hrant_ChessMood"]
[Result "0-1"]
[WhiteElo "2747"]
[BlackElo "2947"]
[TimeControl "180+1"]
[EndTime "15:06:08 PDT"]
[Termination "Hrant_ChessMood won by resignation"]

1. d4 {[%clk 0:02:59]} 1... Nf6 {[%clk 0:02:50.6]} 2. Nc3 {[%clk 0:02:59.3]}
2... d5 {[%clk 0:02:48.4]} 3. Bf4 {[%clk 0:02:59.8]} 3... Bf5 {[%clk 0:02:45.8]}
4. f3 {[%clk 0:02:59.3]} 4... e6 {[%clk 0:02:44.6]} 5. g4 {[%clk 0:02:59.6]}
5... Bg6 {[%clk 0:02:44.7]} 6. Qd2 {[%clk 0:03:00.5]} 6... a6 {[%clk 0:02:38.3]}
7. h4 {[%clk 0:03:00.8]} 7... h6 {[%clk 0:02:32.1]} 8. e3 {[%clk 0:02:59.7]}
8... c5 {[%clk 0:02:31.9]} 9. Nh3 {[%clk 0:02:59.5]} 9... Nc6 {[%clk 0:02:31.4]}
10. Bg3 {[%clk 0:03:00.2]} 10... cxd4 {[%clk 0:02:27.1]} 11. exd4 {[%clk
0:03:01.1]} 11... Qb6 {[%clk 0:02:27.5]} 12. O-O-O {[%clk 0:02:40.1]} 12... Nb4
{[%clk 0:02:25.8]} 13. Nf4 {[%clk 0:02:38.2]} 13... Bxc2 {[%clk 0:02:17.6]} 14.
Re1 {[%clk 0:02:38.7]} 14... Rc8 {[%clk 0:02:14.4]} 15. a3 {[%clk 0:02:13.6]}
15... Na2+ {[%clk 0:01:34]} 16. Nxa2 {[%clk 0:01:55.5]} 16... Bxa3 {[%clk
0:01:25.8]} 17. Nd3 {[%clk 0:00:57]} 17... Bxd3+ {[%clk 0:01:15.3]} 18. Nc3
{[%clk 0:00:57.3]} 18... Qb3 {[%clk 0:01:06.4]} 19. Bxd3 {[%clk 0:00:40]} 19...
Rxc3+ {[%clk 0:01:05.7]} 20. Bc2 {[%clk 0:00:40.7]} 20... Qxb2+ {[%clk
0:01:06.1]} 21. Kd1 {[%clk 0:00:41.4]} 21... Rxf3 {[%clk 0:00:54.1]} 22. Bd6
{[%clk 0:00:40]} 22... Ne4 {[%clk 0:00:29.6]} 23. Bxe4 {[%clk 0:00:37]} 23...
dxe4 {[%clk 0:00:25.8]} 24. Qxb2 {[%clk 0:00:37.1]} 24... Bxb2 {[%clk
0:00:26.1]} 25. Rxe4 {[%clk 0:00:38]} 25... Rd3+ {[%clk 0:00:20.6]} 26. Kc2
{[%clk 0:00:37.4]} 26... Rxd4 {[%clk 0:00:21.5]} 27. Rxd4 {[%clk 0:00:31]} 27...
Bxd4 {[%clk 0:00:22.4]} 28. Rd1 {[%clk 0:00:31.4]} 28... e5 {[%clk 0:00:22.5]}
29. Kd3 {[%clk 0:00:27.7]} 29... Kd7 {[%clk 0:00:22.4]} 30. Ba3 {[%clk
0:00:26.6]} 30... Rc8 {[%clk 0:00:22.6]} 31. Ke4 {[%clk 0:00:27]} 31... Ke6
{[%clk 0:00:23.2]} 0-1

[Event "Late-Titled-Tuesday-Blitz-April-30-2024"]
[Site "Chess.com"]
[Date "2024.04.30"]
[Round "6"]
[White "Mikhal867"]
[Black "realburq"]
[Result "1-0"]
[WhiteElo "2545"]
[BlackElo "2380"]
[TimeControl "180+1"]
[EndTime "15:06:10 PDT"]
[Termination "Mikhal867 won by resignation"]

1. d4 {[%clk 0:03:00.9]} 1... d5 {[%clk 0:02:55.5]} 2. c4 {[%clk 0:03:00.7]}
2... e6 {[%clk 0:02:56.2]} 3. Nf3 {[%clk 0:03:00.2]} 3... Nf6 {[%clk 0:02:53.7]}
4. g3 {[%clk 0:02:48.9]} 4... c6 {[%clk 0:02:46.7]} 5. Bg2 {[%clk 0:02:48.2]}
5... b6 {[%clk 0:02:46.8]} 6. O-O {[%clk 0:02:47.4]} 6... Be7 {[%clk 0:02:43.4]}
7. Qc2 {[%clk 0:02:45]} 7... O-O {[%clk 0:02:42.7]} 8. b3 {[%clk 0:02:42.1]}
8... Ne4 {[%clk 0:02:29.3]} 9. Nbd2 {[%clk 0:02:40.3]} 9... Nxd2 {[%clk
0:02:28]} 10. Bxd2 {[%clk 0:02:36.8]} 10... Bb7 {[%clk 0:02:23]} 11. c5 {[%clk
0:02:35.7]} 11... Nd7 {[%clk 0:02:17.8]} 12. b4 {[%clk 0:02:34.9]} 12... f6
{[%clk 0:01:59.4]} 13. e4 {[%clk 0:02:29.5]} 13... f5 {[%clk 0:01:50.5]} 14.
exf5 {[%clk 0:02:21]} 14... exf5 {[%clk 0:01:49.5]} 15. Rfe1 {[%clk 0:02:20.4]}
15... Bf6 {[%clk 0:01:49.3]} 16. Bf4 {[%clk 0:02:18.2]} 16... g6 {[%clk
0:01:40.7]} 17. Bd6 {[%clk 0:02:15.6]} 17... Re8 {[%clk 0:01:40.7]} 18. Rxe8+
{[%clk 0:02:15]} 18... Qxe8 {[%clk 0:01:40.2]} 19. Re1 {[%clk 0:02:14.9]} 19...
Qf7 {[%clk 0:01:39.9]} 20. Ne5 {[%clk 0:02:12.5]} 20... Bxe5 {[%clk 0:01:30.5]}
21. Bxe5 {[%clk 0:02:10.8]} 21... Nxe5 {[%clk 0:01:20.7]} 22. Rxe5 {[%clk
0:02:07.1]} 22... Re8 {[%clk 0:01:19.4]} 23. Qe2 {[%clk 0:02:02.9]} 23... Kf8
{[%clk 0:01:16.2]} 24. Bf1 {[%clk 0:01:53.9]} 24... b5 {[%clk 0:01:13.8]} 25. f4
{[%clk 0:01:45.3]} 25... Bc8 {[%clk 0:01:10.9]} 26. a4 {[%clk 0:01:43.1]} 26...
a6 {[%clk 0:00:58.4]} 27. axb5 {[%clk 0:01:42.7]} 27... axb5 {[%clk 0:00:58.4]}
28. Qa2 {[%clk 0:01:37.9]} 28... Rxe5 {[%clk 0:00:57.5]} 29. dxe5 {[%clk
0:01:37.5]} 29... Qb7 {[%clk 0:00:57.4]} 30. Qa5 {[%clk 0:01:33.9]} 30... Ke7
{[%clk 0:00:54.6]} 31. Be2 {[%clk 0:01:31.3]} 31... Be6 {[%clk 0:00:40.9]} 32.
h3 {[%clk 0:01:25.5]} 32... d4 {[%clk 0:00:41]} 33. Kf2 {[%clk 0:01:25.4]} 33...
Bc4 {[%clk 0:00:40.1]} 34. Bf3 {[%clk 0:01:23.4]} 34... d3 {[%clk 0:00:26.6]}
35. Ke3 {[%clk 0:01:23]} 35... d2 {[%clk 0:00:24.4]} 36. Kxd2 {[%clk 0:01:06.5]}
36... Qd7+ {[%clk 0:00:23.8]} 37. Kc1 {[%clk 0:00:56.2]} 37... Qd4 {[%clk
0:00:19.9]} 38. Qc7+ {[%clk 0:00:55.8]} 38... Ke8 {[%clk 0:00:14.6]} 39. Bxc6+
{[%clk 0:00:54.4]} 39... Kf8 {[%clk 0:00:13]} 40. Qd6+ {[%clk 0:00:54.3]} 40...
Qxd6 {[%clk 0:00:12.4]} 41. cxd6 {[%clk 0:00:54.2]} 1-0

[Event "Late-Titled-Tuesday-Blitz-April-30-2024"]
[Site "Chess.com"]
[Date "2024.04.30"]
[Round "6"]
[White "Kobalia"]
[Black "OparinGrigoriy"]
[Result "1-0"]
[WhiteElo "2794"]
[BlackElo "2972"]
[TimeControl "180+1"]
[EndTime "15:06:13 PDT"]
[Termination "Kobalia won by resignation"]

1. e4 {[%clk 0:02:52.7]} 1... d6 {[%clk 0:03:00.9]} 2. d4 {[%clk 0:02:51.8]}
2... Nf6 {[%clk 0:03:00.9]} 3. Nc3 {[%clk 0:02:51.4]} 3... e5 {[%clk 0:03:01.6]}
4. dxe5 {[%clk 0:02:50.6]} 4... dxe5 {[%clk 0:03:01.8]} 5. Qxd8+ {[%clk
0:02:50.9]} 5... Kxd8 {[%clk 0:03:02.7]} 6. Bc4 {[%clk 0:02:50.9]} 6... Be6
{[%clk 0:03:02.5]} 7. Bxe6 {[%clk 0:02:50.9]} 7... fxe6 {[%clk 0:03:03.4]} 8. f3
{[%clk 0:02:49.8]} 8... Bb4 {[%clk 0:03:03]} 9. Bd2 {[%clk 0:02:49.2]} 9... Nc6
{[%clk 0:03:02.3]} 10. O-O-O {[%clk 0:02:49.2]} 10... Ke7 {[%clk 0:03:02.2]} 11.
Nh3 {[%clk 0:02:48.9]} 11... Bc5 {[%clk 0:02:38.4]} 12. Rhf1 {[%clk 0:02:39.1]}
12... a6 {[%clk 0:02:34.5]} 13. Nf2 {[%clk 0:02:38.8]} 13... Bxf2 {[%clk
0:02:34.7]} 14. Rxf2 {[%clk 0:02:38.8]} 14... Rhd8 {[%clk 0:02:33.9]} 15. Be3
{[%clk 0:02:38.6]} 15... Rxd1+ {[%clk 0:02:33.1]} 16. Kxd1 {[%clk 0:02:37.3]}
16... Ne8 {[%clk 0:02:32.7]} 17. Rd2 {[%clk 0:02:30.2]} 17... Nd6 {[%clk
0:02:32.8]} 18. b3 {[%clk 0:02:30.6]} 18... b6 {[%clk 0:02:31.5]} 19. Ne2 {[%clk
0:02:26.9]} 19... h6 {[%clk 0:02:29.4]} 20. a4 {[%clk 0:02:25.3]} 20... Nb7
{[%clk 0:02:26]} 21. Nc1 {[%clk 0:02:23.5]} 21... Rd8 {[%clk 0:02:21]} 22. Rxd8
{[%clk 0:02:22.2]} 22... Kxd8 {[%clk 0:02:21.9]} 23. Nd3 {[%clk 0:02:18.2]}
23... Kd7 {[%clk 0:02:22.5]} 24. h4 {[%clk 0:02:17.4]} 24... Kd6 {[%clk
0:02:21.7]} 25. h5 {[%clk 0:02:14.2]} 25... Nbd8 {[%clk 0:02:11.8]} 26. Kd2
{[%clk 0:02:12.8]} 26... Nf7 {[%clk 0:02:10.4]} 27. Nb2 {[%clk 0:02:12.4]} 27...
Ne7 {[%clk 0:02:03.6]} 28. Nc4+ {[%clk 0:02:11.7]} 28... Kd7 {[%clk 0:02:03.3]}
29. b4 {[%clk 0:02:09.2]} 29... b5 {[%clk 0:02:01]} 30. axb5 {[%clk 0:02:08.1]}
30... axb5 {[%clk 0:02:01.9]} 31. Na3 {[%clk 0:02:06.5]} 31... c6 {[%clk
0:02:00.9]} 32. Bc5 {[%clk 0:01:52.2]} 32... Ke8 {[%clk 0:01:27.2]} 33. c4
{[%clk 0:01:50.4]} 33... bxc4 {[%clk 0:01:28.1]} 34. Nxc4 {[%clk 0:01:50.3]}
34... Ng8 {[%clk 0:01:23.1]} 35. Nd6+ {[%clk 0:01:47.7]} 35... Ke7 {[%clk
0:01:11.9]} 36. Nxf7+ {[%clk 0:01:47]} 36... Kxf7 {[%clk 0:01:12.8]} 37. Bd6
{[%clk 0:01:47]} 37... Nf6 {[%clk 0:01:07.4]} 38. Bxe5 {[%clk 0:01:34.7]} 38...
Nxh5 {[%clk 0:01:07.7]} 39. Ke3 {[%clk 0:01:29.1]} 39... Nf6 {[%clk 0:00:38.4]}
40. Bxf6 {[%clk 0:01:21.5]} 40... gxf6 {[%clk 0:00:31.9]} 41. Kd4 {[%clk
0:01:21.5]} 41... Ke7 {[%clk 0:00:32.4]} 42. e5 {[%clk 0:01:18.5]} 42... fxe5+
{[%clk 0:00:21.8]} 43. Kxe5 {[%clk 0:01:18.2]} 43... Kd7 {[%clk 0:00:20.3]} 44.
g4 {[%clk 0:01:12.8]} 44... Ke7 {[%clk 0:00:20.1]} 45. f4 {[%clk 0:01:13.2]}
45... Kd7 {[%clk 0:00:14.2]} 46. f5 {[%clk 0:01:11.7]} 46... exf5 {[%clk
0:00:10.5]} 47. Kxf5 {[%clk 0:01:12]} 47... Kd6 {[%clk 0:00:11.1]} 48. Kg6
{[%clk 0:01:12.3]} 48... Kd5 {[%clk 0:00:12]} 49. Kxh6 {[%clk 0:01:12.5]} 49...
Kc4 {[%clk 0:00:12.9]} 50. g5 {[%clk 0:01:13]} 50... Kxb4 {[%clk 0:00:13.8]} 51.
g6 {[%clk 0:01:13.6]} 51... c5 {[%clk 0:00:14.7]} 52. g7 {[%clk 0:01:14.1]}
52... c4 {[%clk 0:00:15.6]} 53. g8=Q {[%clk 0:01:14.6]} 53... Kc3 {[%clk
0:00:16.3]} 54. Qg3+ {[%clk 0:01:13.4]} 54... Kb2 {[%clk 0:00:16.2]} 55. Qf2+
{[%clk 0:01:12.5]} 1-0

[Event "Late-Titled-Tuesday-Blitz-April-30-2024"]
[Site "Chess.com"]
[Date "2024.04.30"]
[Round "6"]
[White "georgpapi"]
[Black "EsmeraldasAnderson03"]
[Result "1/2-1/2"]
[WhiteElo "2377"]
[BlackElo "2517"]
[TimeControl "180+1"]
[EndTime "15:06:13 PDT"]
[Termination "Game drawn by repetition"]

1. b3 {[%clk 0:03:00.9]} 1... d5 {[%clk 0:02:57.9]} 2. Bb2 {[%clk 0:03:01.8]}
2... Bf5 {[%clk 0:02:57]} 3. f4 {[%clk 0:03:02]} 3... e6 {[%clk 0:02:57.4]} 4.
Nf3 {[%clk 0:03:02.4]} 4... Nf6 {[%clk 0:02:58]} 5. e3 {[%clk 0:03:02]} 5... Be7
{[%clk 0:02:58.4]} 6. Be2 {[%clk 0:03:02.4]} 6... O-O {[%clk 0:02:58.9]} 7. O-O
{[%clk 0:03:02.8]} 7... c5 {[%clk 0:02:58.5]} 8. Ne5 {[%clk 0:03:01]} 8... Qc7
{[%clk 0:02:57.7]} 9. Qe1 {[%clk 0:02:58]} 9... Bxc2 {[%clk 0:02:52.5]} 10. d3
{[%clk 0:02:44.8]} 10... Bxb1 {[%clk 0:02:51.9]} 11. Rxb1 {[%clk 0:02:45.7]}
11... Nc6 {[%clk 0:02:50.3]} 12. g4 {[%clk 0:02:45.2]} 12... Nd7 {[%clk
0:02:49.3]} 13. Nxc6 {[%clk 0:02:41.5]} 13... Qxc6 {[%clk 0:02:50.2]} 14. g5
{[%clk 0:02:40.4]} 14... a5 {[%clk 0:02:48.8]} 15. Qg3 {[%clk 0:02:27.5]} 15...
a4 {[%clk 0:02:47.8]} 16. h4 {[%clk 0:02:22.9]} 16... axb3 {[%clk 0:02:47.7]}
17. axb3 {[%clk 0:02:22.5]} 17... Ra2 {[%clk 0:02:48.3]} 18. h5 {[%clk
0:02:16.3]} 18... b5 {[%clk 0:02:40.8]} 19. Bf3 {[%clk 0:01:58.2]} 19... c4
{[%clk 0:02:38]} 20. bxc4 {[%clk 0:01:53]} 20... bxc4 {[%clk 0:02:38.9]} 21.
dxc4 {[%clk 0:01:15.5]} 21... Qxc4 {[%clk 0:02:39.8]} 22. Bd4 {[%clk 0:01:15.7]}
22... Bc5 {[%clk 0:02:22]} 23. Rfc1 {[%clk 0:01:13.3]} 23... Rc2 {[%clk
0:02:15.7]} 24. Rxc2 {[%clk 0:00:40.2]} 24... Qxc2 {[%clk 0:02:16.6]} 25. Rb7
{[%clk 0:00:39]} 25... Ra8 {[%clk 0:02:00.1]} 26. Qg2 {[%clk 0:00:26.5]} 26...
Qxg2+ {[%clk 0:01:38.4]} 27. Kxg2 {[%clk 0:00:26]} 27... Bxd4 {[%clk 0:01:39.3]}
28. exd4 {[%clk 0:00:25.1]} 28... Nf8 {[%clk 0:01:39.7]} 29. f5 {[%clk
0:00:15.9]} 29... Ra4 {[%clk 0:01:38.3]} 30. g6 {[%clk 0:00:12.8]} 30... hxg6
{[%clk 0:01:36.6]} 31. hxg6 {[%clk 0:00:12.8]} 31... fxg6 {[%clk 0:01:37.5]} 32.
fxe6 {[%clk 0:00:13]} 32... Nxe6 {[%clk 0:01:34.1]} 33. Bxd5 {[%clk 0:00:13.4]}
33... Rxd4 {[%clk 0:01:33.8]} 34. Bxe6+ {[%clk 0:00:13.7]} 34... Kh7 {[%clk
0:01:34.7]} 35. Rb3 {[%clk 0:00:09.9]} 35... g5 {[%clk 0:01:34.1]} 36. Bf5+
{[%clk 0:00:09.4]} 36... g6 {[%clk 0:01:31.2]} 37. Rb7+ {[%clk 0:00:10]} 37...
Kh6 {[%clk 0:01:31.6]} 38. Rb6 {[%clk 0:00:10.4]} 38... Kh5 {[%clk 0:01:30.3]}
39. Rxg6 {[%clk 0:00:03.2]} 39... Rf4 {[%clk 0:01:28.7]} 40. Rf6 {[%clk
0:00:02.7]} 40... g4 {[%clk 0:01:26.8]} 41. Rf8 {[%clk 0:00:01.4]} 41... Kg5
{[%clk 0:01:26.1]} 42. Rg8+ {[%clk 0:00:01]} 42... Kxf5 {[%clk 0:01:26]} 43.
Rf8+ {[%clk 0:00:01.7]} 43... Kg5 {[%clk 0:01:26.4]} 44. Rxf4 {[%clk 0:00:02.2]}
44... Kxf4 {[%clk 0:01:27]} 45. Kf2 {[%clk 0:00:02.9]} 45... Kf5 {[%clk
0:01:26.9]} 46. Kg2 {[%clk 0:00:03.1]} 46... Kg5 {[%clk 0:01:27.2]} 47. Kg3
{[%clk 0:00:03.6]} 47... Kh5 {[%clk 0:01:27.9]} 48. Kg2 {[%clk 0:00:04]} 48...
Kh4 {[%clk 0:01:28.8]} 49. Kh2 {[%clk 0:00:04.5]} 49... g3+ {[%clk 0:01:29.7]}
50. Kg2 {[%clk 0:00:05]} 50... Kg4 {[%clk 0:01:30.1]} 51. Kg1 {[%clk 0:00:05.6]}
51... Kf4 {[%clk 0:01:30.8]} 52. Kg2 {[%clk 0:00:05.8]} 52... Kg4 {[%clk
0:01:31]} 53. Kg1 {[%clk 0:00:06.4]} 53... Kh3 {[%clk 0:01:31.2]} 54. Kh1 {[%clk
0:00:06.9]} 54... Kh4 {[%clk 0:01:32.1]} 55. Kg1 {[%clk 0:00:06.9]} 55... Kg5
{[%clk 0:01:32.6]} 56. Kg2 {[%clk 0:00:07]} 56... Kg4 {[%clk 0:01:33.1]} 1/2-1/2

[Event "Late-Titled-Tuesday-Blitz-April-30-2024"]
[Site "Chess.com"]
[Date "2024.04.30"]
[Round "6"]
[White "Bryanl106"]
[Black "jraosam"]
[Result "1-0"]
[WhiteElo "2682"]
[BlackElo "2101"]
[TimeControl "180+1"]
[EndTime "15:06:14 PDT"]
[Termination "Bryanl106 won on time"]

1. e4 {[%clk 0:02:58.3]} 1... e5 {[%clk 0:02:59.6]} 2. Nf3 {[%clk 0:02:57.8]}
2... Nf6 {[%clk 0:02:58.6]} 3. Nc3 {[%clk 0:02:56.8]} 3... Nc6 {[%clk
0:02:57.7]} 4. a3 {[%clk 0:02:55.8]} 4... a6 {[%clk 0:02:56.4]} 5. d4 {[%clk
0:02:55.5]} 5... exd4 {[%clk 0:02:55.1]} 6. Nxd4 {[%clk 0:02:56.4]} 6... Nxd4
{[%clk 0:02:55.7]} 7. Qxd4 {[%clk 0:02:56.3]} 7... d6 {[%clk 0:02:56.6]} 8. Bc4
{[%clk 0:02:50.4]} 8... Be7 {[%clk 0:02:56.6]} 9. O-O {[%clk 0:02:50.7]} 9...
O-O {[%clk 0:02:57.2]} 10. Bg5 {[%clk 0:02:49.9]} 10... Be6 {[%clk 0:02:56.7]}
11. Rad1 {[%clk 0:02:46.5]} 11... Bxc4 {[%clk 0:02:55.8]} 12. Qxc4 {[%clk
0:02:47.4]} 12... Qc8 {[%clk 0:02:40.6]} 13. h3 {[%clk 0:02:42.7]} 13... c6
{[%clk 0:02:38.1]} 14. Bxf6 {[%clk 0:02:41.9]} 14... gxf6 {[%clk 0:02:35.7]} 15.
Ne2 {[%clk 0:02:38.8]} 15... f5 {[%clk 0:02:35.4]} 16. Ng3 {[%clk 0:02:37.1]}
16... fxe4 {[%clk 0:02:35.3]} 17. Qxe4 {[%clk 0:02:38]} 17... Qe6 {[%clk
0:02:34.9]} 18. Rfe1 {[%clk 0:02:33.3]} 18... Qxe4 {[%clk 0:02:34.8]} 19. Rxe4
{[%clk 0:02:34.2]} 19... Rfe8 {[%clk 0:02:34.5]} 20. Nf5 {[%clk 0:02:26.2]}
20... Bf8 {[%clk 0:02:34.4]} 21. Rg4+ {[%clk 0:02:26.7]} 21... Kh8 {[%clk
0:02:34.6]} 22. Nxd6 {[%clk 0:02:27.4]} 22... Re7 {[%clk 0:02:28.7]} 23. Nf5
{[%clk 0:02:26.7]} 23... Re5 {[%clk 0:02:28.6]} 24. Ng3 {[%clk 0:02:20.8]} 24...
Rae8 {[%clk 0:02:24.9]} 25. Rd7 {[%clk 0:02:20.3]} 25... R5e7 {[%clk 0:02:20.3]}
26. Rgd4 {[%clk 0:02:18]} 26... Kg8 {[%clk 0:02:08.6]} 27. Nf5 {[%clk
0:02:16.1]} 27... Re5 {[%clk 0:02:08.7]} 28. Rg4+ {[%clk 0:02:16]} 28... Kh8
{[%clk 0:02:07.9]} 29. Rxf7 {[%clk 0:02:16.4]} 29... Re1+ {[%clk 0:02:00.1]} 30.
Kh2 {[%clk 0:02:15.6]} 30... R1e2 {[%clk 0:02:01]} 31. Ng7 {[%clk 0:02:07.8]}
31... Rb8 {[%clk 0:01:26.9]} 32. Nh5 {[%clk 0:02:06.2]} 32... Bd6+ {[%clk
0:00:55.8]} 33. f4 {[%clk 0:01:59.5]} 33... Rf8 {[%clk 0:00:46.1]} 34. Nf6
{[%clk 0:01:19.6]} 34... Bxf4+ {[%clk 0:00:28.1]} 35. Kg1 {[%clk 0:01:19.5]}
35... Be3+ {[%clk 0:00:21.2]} 36. Kh2 {[%clk 0:01:14.3]} 36... Bf4+ {[%clk
0:00:21.2]} 37. Kg1 {[%clk 0:01:14.2]} 37... Be3+ {[%clk 0:00:21.7]} 38. Kh1
{[%clk 0:01:14.8]} 38... Re1+ {[%clk 0:00:16]} 39. Kh2 {[%clk 0:01:15]} 39...
Bf4+ {[%clk 0:00:07.4]} 40. g3 {[%clk 0:01:15.1]} 40... Re2+ {[%clk 0:00:03.1]}
41. Kh1 {[%clk 0:01:11.3]} 41... Re1+ {[%clk 0:00:02.8]} 42. Kg2 {[%clk
0:01:11.8]} 42... Re2+ {[%clk 0:00:01.4]} 43. Kf1 {[%clk 0:01:11.7]} 43... Re7
{[%clk 0:00:00.5]} 44. Rxe7 {[%clk 0:01:09.4]} 1-0